[Event "Marcel Invitational Chess-ch 2022"]
[Site "Dhaka"]
[Date "2022.04.26"]
[Round "8.6"]
[White "Jamal Uddin"]
[Black "Mukitul, Islam Ripon"]
[Result "0-1"]
[ECO "D00"]
[WhiteElo "2106"]
[BlackElo "1983"]
[Annotator "TA"]
[PlyCount "76"]
[EventDate "2022.04.18"]
[EventCountry "BAN"]
[SourceTitle "playchess.com"]
[Source "ChessBase"]
[SourceQuality "1"]
[TimeControl "5400+30"]

{[%evp 9,76,7,8,8,14,13,23,5,23,15,21,16,41,0,14,10,12,0,25,31,39,18,20,24,24,33,56,-8,70,74,83,30,28,5,68,72,124,124,110,83,89,83,92,45,98,68,84,64,82,-642,-640,-845,-595,-608,-588,-587,-567,-612,-608,-636,-628,-671,-638,-681,-633,-909,-903,-900,-717]} 1. d4 {[%emt 0:00:20]} d5 {[%emt 0:00:38]} 2. Bf4 {[%emt 1:31:10]} Bf5 {[%emt 0:03:35]} 3. e3 {[%emt 0:01:01]} e6 {[%emt 0:00:25]} 4. Nd2 {[%emt 0:01:29]} Bd6 {[%emt 0:00:25]} 5. Bxd6 {[%emt 0:00:43]} Qxd6 {[%emt 0:00:08]} 6. c4 {[%emt 0:00:25] [#] D00: 1 d4 d5: Unusual lines.} c6 $146 {[%emt 0:00:58]} ({Predecessor:} 6... Nf6 7. Ngf3 O-O 8. c5 Qe7 9. Be2 Nc6 10. O-O e5 11. dxe5 Nxe5 12. b4 c6 13. Nxe5 Qxe5 {1-0 (47) Esteban Amo,J-Balana Romero,R (1877) ICCF email 2018}) 7. Qb3 {[%emt 0:00:30]} Qe7 {[%emt 0:00:39]} 8. Ngf3 {[%emt 0:00:43] White has an edge.} h6 {[%emt 0:00:36]} 9. Be2 {[%emt 0:00:39]} Nf6 {[%emt 0:00:37]} 10. Ne5 {[%emt 0:00:51]} O-O {[%emt 0:00:41]} 11. O-O {[%emt 1:28:35]} Qc7 {[%emt 0:04:08]} 12. Rac1 {[%emt 0:02:05]} Nbd7 {[%emt 0:00:22]} 13. f4 {[%emt 1:24:49]} Rab8 {[%emt 0:00:40]} 14. Bf3 {[%emt 0:03:27]} Qd6 {[%emt 0:00:25]} 15. g4 {[%emt 0:01:34]} Bh7 {[%emt 1:23:43]} 16. h4 {[%emt 0:00:52]} Ne4 {[%emt 0:00:40] Prevents Rf2.} 17. Nxe4 {[%emt 0:04:37]} dxe4 {[%emt 0:00:00]} 18. Bg2 {[%emt 0:00:30]} (18. Be2 $14) 18... f6 {[%emt 0:00:00] [#]} (18... Nxe5 $11 19. dxe5 (19. fxe5 Qd8 $15) 19... Qe7) 19. c5 $1 $14 {[%emt 0:00:00]} Qe7 {[%emt 0:00:30] [#]} 20. Nxd7 (20. Nc4 $1 $16) 20... Qxd7 $11 21. f5 {[%emt 0:01:30]} Qd5 {[%emt 0:01:30]} (21... Rbe8 $11) 22. Rf4 $14 {[%emt 0:00:00]} exf5 {[%emt 0:00:00]} (22... Rfe8 $142) 23. gxf5 $16 {[%emt 0:00:00]} Kh8 {[%emt 0:00:00]} 24. Bxe4 {[%emt 0:00:00]} Qd8 {[%emt 0:00:00]} 25. Qc2 {[%emt 0:00:00] 0x0.001b374052dedp-1022s more active pieces.} Re8 {[%emt 0:00:00]} 26. Qg2 {[%emt 0:00:00]} ({White should try} 26. Qf2 $16) 26... Qe7 {[%emt 0:00:00]} ({Black should play} 26... Re7 $14) 27. Re1 {[%emt 0:00:00]} Rbd8 {[%emt 0:00:00]} 28. b3 {[%emt 0:00:00]} Qc7 {[%emt 0:00:00][%cal Od8d4] White must now prevent ...Rxd4!} 29. Qg3 $2 {[%emt 0:00:00][%mdl 8192] [#] Loses the game.} (29. Qf2 $16) 29... Rxe4 $1 $19 {[%emt 0:00:00][%mdl 576] Pin. Black is clearly winning.} 30. Kh2 {[%emt 0:00:00]} (30. Qf3 Qxf4) 30... Rde8 {[%emt 0:00:00][%cal Oc7f4,Bd8e8,Be8e4,Be4h4][%mdl 32] Hoping for ...Qxf4!} 31. Rxe4 {[%emt 0:00:00]} Qxg3+ {[%emt 0:00:00]} 32. Kxg3 {[%emt 0:00:00]} Rxe4 {[%emt 0:00:00][%mdl 4096] Endgame KRB-KR} 33. Kf3 {[%emt 0:00:00]} Bxf5 {[%emt 0:00:00]} 34. h5 {[%emt 0:00:00]} Kg8 {[%emt 0:00:00]} 35. b4 {[%emt 0:00:00]} a6 {[%emt 0:00:00]} 36. a4 {[%emt 0:00:00]} Kf7 {[%emt 0:00:00]} 37. Ra1 {[%emt 0:00:00]} Rh4 {[%emt 0:00:00]} 38. b5 {[%emt 0:00:00]} Rxh5 {[%emt 0:02:30] Weighted Error Value: White=0.56/Black=0.28 (precise)} 0-1

[Event "Marcel Invitational Chess-ch 2022"]
[Site "Dhaka"]
[Date "2022.04.27"]
[Round "9.2"]
[White "Manon, Reja Neer"]
[Black "Hossain, Showkat Pollab"]
[Result "0-1"]
[ECO "B01"]
[WhiteElo "2209"]
[BlackElo "1979"]
[Annotator "TA"]
[PlyCount "82"]
[EventDate "2022.04.18"]
[EventCountry "BAN"]
[SourceTitle "playchess.com"]
[Source "ChessBase"]
[SourceQuality "1"]
[TimeControl "5400+30"]

{[%evp 9,82,58,79,78,92,85,92,77,87,65,98,69,73,53,68,55,57,49,82,63,92,73,89,0,45,26,60,30,61,49,64,43,57,53,54,52,65,49,76,-93,-93,-93,-89,-91,-90,-90,-60,-86,-71,-72,-64,-80,-47,-253,-231,-200,-237,-625,-622,-616,-605,-568,-275,-268,-274,-262,-160,-261,-227,-204,-130,-2882,-2666,-1734,-1630]} 1. e4 {[%emt 0:13:52]} d5 {[%emt 0:00:01]} 2. exd5 {[%emt 0:00:14]} Qxd5 {[%emt 0:00:01]} 3. d4 {[%emt 0:00:35]} Nf6 {[%emt 0:03:46]} 4. Nf3 {[%emt 0:00:09]} c6 {[%emt 0:01:24]} 5. Be2 {[%emt 0:00:38]} g6 {[%emt 0:02:07]} 6. O-O {[%emt 0:00:24] B01: Scandinavian Defence.} Bg7 {[%emt 0:00:01]} 7. c4 {[%emt 0:00:09]} Qd6 {[%emt 0:00:15]} 8. Nc3 {[%emt 0:00:27] White is better.} O-O {[%emt 1:26:55]} 9. h3 {[%emt 0:01:45]} Bf5 {[%emt 0:00:00]} 10. Be3 {[%emt 0:03:08]} Ne4 {[%emt 0:00:00]} 11. Nxe4 {[%emt 0:05:43]} Bxe4 {[%emt 0:00:00]} 12. Qb3 {[%emt 0:00:05] Threatens to win with Ng5.} Qc7 {[%emt 0:00:00]} 13. Rfd1 {[%emt 0:05:13] [#]} (13. Ng5 {feels hotter.} Bf5 14. Rad1 Na6 15. Bf3) 13... Bf5 $146 {[%emt 0:00:00]} ({Predecessor:} 13... Bxf3 14. Bxf3 Nd7 15. Rac1 Rfe8 16. Rc2 e5 17. d5 e4 18. Bg4 f5 19. d6 Qd8 {1-0 (36) Hansen,T (2450)-Onkoud,A (2383) Tromsoe 2014}) 14. Rac1 {[%emt 0:02:13]} b6 {[%emt 0:00:00]} 15. Qa3 {[%emt 0:16:14]} a5 {[%emt 0:00:00]} 16. Qb3 {[%emt 0:12:43]} ({White should play} 16. b4 $16) 16... Na6 {[%emt 0:00:00]} 17. Rd2 {[%emt 0:04:44]} Rfd8 {[%emt 0:00:00]} 18. Qd1 {[%emt 0:02:18]} Qb7 {[%emt 0:00:00]} 19. g4 {[%emt 0:02:29]} Bd7 {[%emt 0:00:00]} 20. Ne5 {[%emt 0:01:50]} Be8 {[%emt 0:00:00]} 21. f4 {[%emt 0:26:07]} Rac8 {[%emt 0:00:00]} 22. Bf3 {[%emt 0:00:00]} Qc7 {[%emt 0:00:00]} 23. Qe2 {[%emt 0:00:00]} c5 {[%emt 0:00:00]} 24. Qf2 $2 {[%emt 0:00:00]} (24. d5 $1 $16) 24... cxd4 $1 $17 {[%emt 0:00:00]} 25. Bxd4 {[%emt 0:00:00]} Nc5 $1 {[%emt 0:00:00][%cal Og6g5,Ba6c5,Bc5e6,Be6f4,Bf4d3][%mdl 32]} 26. Re1 {[%emt 0:00:00] [#]} Ne6 $1 {[%emt 0:00:00]} ({Much worse is} 26... f6 $6 27. Nd3 $11) 27. Be3 {[%emt 0:00:00]} Bxe5 {[%emt 0:00:00]} (27... Rxd2 {is interesting.} 28. Qxd2 g5 29. b3 Rd8) 28. Rxd8 {[%emt 0:00:00]} Rxd8 {[%emt 0:00:00]} 29. fxe5 {[%emt 0:00:00]} Qxc4 {[%emt 0:00:00]} 30. Bxb6 {[%emt 0:00:00]} Nf4 {[%emt 0:00:00]} 31. Kh2 {[%emt 0:03:25] [#]} (31. Qc5 $15 Nxh3+ 32. Kh1 Qxc5 33. Bxc5) 31... Nd3 $1 $19 {[%emt 0:00:00][%mdl 512]} 32. Be2 {[%emt 0:00:01]} (32. Qe3 Nxe1) 32... Qxa2 {[%emt 0:00:00]} 33. Qe3 {[%emt 0:02:00]} (33. Bxd3 Rxd3 34. Re3) 33... Nxe1 {[%emt 0:00:00]} 34. Bxd8 {[%emt 0:00:02]} Qd5 {[%emt 0:00:00][%csl Ge1][%cal Rd5g2] Inhibits Qd2.} 35. Qf2 {[%emt 0:00:58] Inhibits Qg2+.} Qxe5+ {[%emt 0:00:00]} (35... Qxd8 $142 36. Qxe1 Qd4) 36. Kg1 {[%emt 0:00:01]} Nc2 {[%emt 0:00:00]} ({Avoid the trap} 36... Qxb2 $2 37. Bxa5 Nc2 38. Bf1 $19) 37. Bb6 {[%emt 0:00:43]} a4 {[%emt 0:00:00]} 38. Bd3 {[%emt 0:00:46]} (38. Ba7 $17 {only move.}) 38... Nb4 {[%emt 0:00:00]} ({And not} 38... Qxb2 39. Bxc2 a3 40. Be4 Qc1+ 41. Kg2 $17) 39. Bc4 {[%emt 0:00:21]} Qe4 {[%emt 0:00:00]} 40. Qc5 {[%emt 0:00:39][%mdl 8192] [#]} (40. Qe2 $17 Qxe2 41. Bxe2) 40... Bc6 $1 {[%emt 0:00:00][%csl Gc6][%cal Re4g2]} 41. Kf1 {[%emt 0:00:24]} Nc2 {[%emt 0:00:00] Weighted Error Value: White=0.53/Black=0.23 (precise)} 0-1

[Event "Marcel Invitational Chess-ch 2022"]
[Site "Dhaka"]
[Date "2022.04.27"]
[Round "9.3"]
[White "Mukitul, Islam Ripon"]
[Black "Anata, Choudhury"]
[Result "0-1"]
[ECO "B59"]
[WhiteElo "1983"]
[BlackElo "2170"]
[Annotator "TA"]
[PlyCount "122"]
[EventDate "2022.04.18"]
[EventCountry "BAN"]
[SourceTitle "playchess.com"]
[Source "ChessBase"]
[SourceQuality "1"]
[TimeControl "5400+30"]

{[%evp 22,122,0,-30,-35,-43,-41,-54,-33,-76,-79,-89,-95,-116,-125,-131,-129,-103,-113,-110,-33,-83,-82,-77,-50,-103,-64,-92,-63,-167,-50,-35,-20,-23,-12,-25,-10,-11,-5,-10,-10,-37,0,-52,0,-56,0,0,0,0,0,0,55,53,58,50,76,0,0,-8,-11,-29,0,-120,-108,-197,-127,-127,-122,-125,-125,-276,-252,-5065,-29,-29,-29,-29,-29,-29,-29,-41,-46,-141,-133,-310,-225,-703,-684,-846,-831,-787,-774,-29964,-29965,-29964,-29965,-29976,-29973,-29976,-29977,-29982,-29983]} 1. e4 {[%emt 0:00:06]} c5 {[%emt 0:00:23]} 2. Nf3 {[%emt 0:00:07]} d6 {[%emt 0:00:16]} 3. d4 {[%emt 0:01:02]} cxd4 {[%emt 0:00:15]} 4. Nxd4 {[%emt 0:00:06]} Nf6 {[%emt 0:00:10]} 5. Nc3 {[%emt 0:02:50]} Nc6 {[%emt 0:00:23]} 6. Be2 {[%emt 0:02:44]} e5 {[%emt 0:00:15]} 7. Nb3 {[%emt 0:01:29]} Be7 {[%emt 0:00:17]} 8. Be3 {[%emt 0:00:23]} O-O {[%emt 0:00:24]} 9. O-O {[%emt 0:01:03]} a5 {[%emt 0:00:50]} 10. a4 {[%emt 0:00:42]} Nb4 {[%emt 0:00:21]} 11. Bf3 {[%emt 0:09:12]} Be6 {[%emt 0:06:04]} 12. Qd2 {[%emt 0:04:17]} Rc8 {[%emt 0:01:33] B59: Classical Sicilian: 6 Be2 e5 7 Nb3.} 13. Rfd1 {[%emt 0:00:29]} Qc7 {[%emt 0:01:10]} 14. Rac1 {[%emt 0:00:27]} b6 $1 {[%emt 0:00:21] [#] Black is slightly better.} 15. h3 $146 {[%emt 0:12:29]} ({Predecessor:} 15. Bg5 Rfd8 16. Bxf6 Bxf6 17. Na1 h6 18. Rb1 Bg5 19. Qe1 Qc6 20. g3 Rd7 21. h4 {0-1 (61) Tkachova,A (1993)-Osmanodja,F (2011) Dresden 2011}) 15... Rfd8 {[%emt 0:00:44]} 16. Na1 {[%emt 0:07:02]} d5 {[%emt 0:03:51] White must now prevent ...dxe4. &Nero is more active.} 17. exd5 {[%emt 0:05:01]} Nfxd5 {[%emt 0:01:22]} 18. Nxd5 {[%emt 0:00:32]} Nxd5 {[%emt 0:00:23]} 19. Bxd5 {[%emt 0:03:32]} Bxd5 {[%emt 0:00:29]} 20. Qe2 {[%emt 0:00:35]} f5 {[%emt 0:07:14]} (20... Bc6 $17 21. Rxd8+ Rxd8) 21. f3 {[%emt 0:02:20]} (21. Qb5 $15 Qb7 22. Bxb6) 21... Bc4 $17 {[%emt 0:20:09] This bishop pair is nice.} 22. Qf2 {[%emt 0:04:19]} Rb8 {[%emt 0:00:26]} 23. Qe1 {[%emt 0:01:35]} (23. Rxd8+ $15 Qxd8 24. f4) 23... Bd5 {[%emt 0:05:26]} 24. c4 {[%emt 0:02:02]} Bc6 {[%emt 0:01:38]} (24... Bxc4 25. Rxd8+ Rxd8 26. b3 $16) 25. b3 {[%emt 0:00:20]} (25. Rxd8+ $15 Qxd8 26. b3) 25... Ba3 {[%emt 0:06:03]} (25... e4 $19 26. f4 Rd3) 26. Rxd8+ $1 $15 {[%emt 0:00:26]} Rxd8 {[%emt 0:00:07]} 27. Rd1 {[%emt 0:00:16]} Re8 {[%emt 0:02:10]} 28. Nc2 {[%emt 0:00:21]} Be7 {[%emt 0:00:30]} 29. Qf2 {[%emt 0:04:54]} Rb8 {[%emt 0:02:35]} 30. Qe2 {[%emt 0:02:08]} Bf8 {[%emt 0:01:51]} 31. Kh1 {[%emt 0:00:46]} Qb7 {[%emt 0:01:54]} 32. Bg5 {[%emt 0:00:55]} (32. Bc1 $11) 32... h6 {[%emt 0:01:23]} ({Better is} 32... Re8 $1 $15) 33. Bh4 {[%emt 0:01:05]} (33. Bc1 $11) 33... g5 {[%emt 0:00:35]} (33... Re8 $15) 34. Be1 {[%emt 0:03:12]} Re8 {[%emt 0:00:41]} 35. Ne3 $1 {[%emt 0:02:49]} e4 {[%emt 0:03:52][%cal Re4f3]} 36. Nd5 {[%emt 0:01:14] Nf6+ is the strong threat.} Bg7 {[%emt 0:00:13] Prevents Nf6+.} (36... Qf7 $11) 37. fxe4 $1 $14 {[%emt 0:04:39]} Rxe4 {[%emt 0:02:08]} 38. Qf3 {[%emt 0:01:30]} Qf7 {[%emt 0:01:47]} 39. Bc3 {[%emt 0:01:00] Against Bd4} (39. Bf2 $1 $16) 39... Qe6 $11 {[%emt 0:03:20]} 40. Bxg7 {[%emt 0:01:52]} ({Avoid the trap} 40. Nxb6 $2 Re3 41. Qf2 (41. Rd8+ $2 Kh7 $19) 41... Rxh3+ 42. Kg1 Rxc3 $19) 40... Kxg7 {[%emt 0:00:04]} 41. Qc3+ {[%emt 0:01:03]} Kg6 {[%emt 0:00:13]} 42. Nxb6 {[%emt 0:06:30]} (42. Kg1 $11) 42... Re3 $17 {[%emt 0:01:47][%mdl 64] Skewer} 43. Qd4 {[%emt 0:01:12] [#]} (43. Rd6 $17 Rxh3+ 44. Qxh3 Qxd6 45. Qe3) 43... Rxh3+ {[%emt 0:03:26]} ({Stronger than} 43... Rxb3 44. Nd5 $11) (43... Bxg2+ $1 $19 {[%mdl 512]} 44. Kxg2 Rxb3) 44. Kg1 {[%emt 0:00:01]} Rg3 {[%emt 0:02:37]} 45. Nd5 {[%emt 0:02:55]} Rxb3 $40 {[%emt 0:02:30][%mdl 128] Black attacks with force.} 46. Qa7 $2 {[%emt 0:01:54]} (46. Qf2 $17) 46... Bxd5 $19 {[%emt 0:02:40]} ({Not} 46... Bxa4 47. Qxa5 Bd7 48. Qa1 $11) 47. cxd5 $2 {[%emt 0:00:20]} (47. Qc5) 47... Qb6+ $2 {[%emt 0:00:29]} ({Black should try} 47... Qe2 $19 48. Rf1 Rb2) 48. Qxb6+ $11 {[%emt 0:00:24]} Rxb6 {[%emt 0:00:05][%mdl 4096] Endgame KR-KR} 49. d6 {[%emt 0:00:17] Threatening mate with d7.} Rb8 {[%emt 0:00:05][%cal Bb6b8,Bb8d8,Bd8d6,Bd6d2,Bd2f2][%mdl 32]} 50. Rd5 {[%emt 0:00:45]} Rd8 {[%emt 0:00:18]} 51. Kf2 {[%emt 0:00:21]} Kf6 {[%emt 0:00:16]} 52. Rxa5 {[%emt 0:04:26]} (52. g3 $15) 52... Rxd6 $17 {[%emt 0:00:16] Threatens to win with ...Rd2+.} 53. Ra8 $2 {[%emt 0:00:21]} (53. g3 $17 {was the only chance.}) 53... Rd2+ $19 {[%emt 0:06:20]} 54. Kf1 $2 {[%emt 0:00:01]} (54. Kf3) 54... Ke5 {[%emt 0:00:41]} 55. a5 {[%emt 0:01:19]} Kf4 {[%emt 0:00:56]} 56. a6 {[%emt 0:00:28]} Kg3 {[%emt 0:00:21] ( -> ...Ra2)} 57. Rf8 {[%emt 0:01:58]} Rf2+ {[%emt 0:00:24] Black mates.} 58. Ke1 {[%emt 0:00:15]} Ra2 {[%emt 0:00:17]} 59. Rf6 {[%emt 0:01:00]} Kxg2 {[%emt 0:00:28]} 60. Rxh6 {[%emt 0:00:14]} Kg3 {[%emt 0:00:27]} 61. Rb6 {[%emt 0:01:46]} f4 {[%emt 0:00:12] Weighted Error Value: White=0.52/Black=0.30} 0-1

[Event "Marcel Invitational Chess-ch 2022"]
[Site "Dhaka"]
[Date "2022.04.27"]
[Round "9.4"]
[White "Rahman, Syed Mahfuzur"]
[Black "Abdul, Momin"]
[Result "1-0"]
[ECO "D55"]
[WhiteElo "2099"]
[BlackElo "1916"]
[Annotator "TA"]
[PlyCount "75"]
[EventDate "2022.04.18"]
[EventCountry "BAN"]
[SourceTitle "playchess.com"]
[Source "ChessBase"]
[SourceQuality "1"]
[TimeControl "5400+30"]

{[%evp 16,75,37,-15,6,0,0,8,647,606,624,617,717,717,847,837,951,930,956,951,951,948,1056,1031,1039,887,889,869,895,890,1042,976,1258,1293,1247,1225,1158,985,1118,1090,29977,29978,29980,29981,29981,29981,29981,29982,29982,29983,29983,29984,29984,29984,29984,29985,29985,29986,29986,29987,29998,29999]} 1. d4 {[%emt 0:00:02]} d5 {[%emt 0:21:24]} 2. c4 {[%emt 0:00:09]} e6 {[%emt 0:00:01]} 3. Nc3 {[%emt 0:00:05]} Nf6 {[%emt 0:00:03]} 4. Bg5 {[%emt 0:00:11]} Be7 {[%emt 0:00:07]} 5. e3 {[%emt 0:00:15]} b6 {[%emt 0:01:15]} 6. cxd5 {[%emt 0:10:27]} exd5 {[%emt 0:01:22]} 7. Nf3 {[%emt 0:04:38]} O-O {[%emt 0:01:16]} 8. Bd3 {[%emt 0:00:23]} Nbd7 {[%emt 0:02:39] is the legacy move (8...Bb7).} 9. Ne5 {[%emt 0:10:04]} (9. O-O $14) 9... Bb7 {[%emt 0:01:38] D55: Queen's Gambit Declined: 4 Bg5 Be7: Lines without ...h6 and 6...h6 7 Bxf6.} 10. Qa4 {[%emt 0:10:28]} Nxe5 {[%emt 0:00:55]} 11. dxe5 {[%emt 0:00:02] [#]} Nd7 $146 {[%emt 0:00:23][%mdl 8192]} (11... Ne4 $11 12. Bxe7 Qxe7) ({Predecessor:} 11... Ne4 12. Bxe7 Qxe7 13. Nxd5 Bxd5 14. Bxe4 Rfd8 15. Bxd5 Rxd5 16. O-O Qxe5 17. Rad1 Ra5 {0-1 (84) Majer,D (2295)-Meijers,V (2410) Baunatal 1998}) 12. Qh4 $1 $18 {[%emt 0:00:27][%csl Gd3,LRe7,LRh7][%cal Rh4h7] [#]} f5 {[%emt 0:02:07]} 13. Bxe7 {[%emt 0:00:52]} Qe8 {[%emt 0:00:04]} 14. Bxf8 {[%emt 0:00:44]} Nxe5 {[%emt 0:00:02]} 15. Bxf5 {[%emt 0:00:54][%cal Bd3f5,Bf5e6,Be6d5][%mdl 32]} g6 {[%emt 0:00:34] [#]} 16. Qf6 $1 {[%emt 0:02:26][%csl Gf8][%cal Rf6g7]} Qxf8 {[%emt 0:00:13]} 17. Be6+ {[%emt 0:01:44]} Nf7 {[%emt 0:00:04]} 18. Nxd5 {[%emt 0:01:36] White threatens Ne7+ and mate.} Bxd5 {[%emt 0:00:03]} 19. Bxd5 {[%emt 0:00:07]} Qb4+ {[%emt 0:00:18]} 20. Qc3 {[%emt 0:00:12]} Qxc3+ {[%emt 0:00:08]} 21. bxc3 {[%emt 0:00:02]} Rd8 {[%emt 0:00:01]} 22. O-O-O {[%emt 0:00:22] Black must now prevent Bxf7+.} Rf8 {[%emt 0:00:18]} 23. Rd4 {[%emt 0:00:53]} g5 {[%emt 0:00:08]} 24. h4 {[%emt 0:00:41]} Kg7 {[%emt 0:00:04]} 25. Bxf7 {[%emt 0:00:30]} Rxf7 {[%emt 0:00:01]} 26. f3 {[%emt 0:00:07][%cal Bf2f3,Bf3f4][%mdl 32]} c5 {[%emt 0:00:04]} 27. Rg4 {[%emt 0:00:13]} h6 {[%emt 0:00:01]} 28. hxg5 {[%emt 0:00:02] White mates.} hxg5 {[%emt 0:00:01]} 29. Rxg5+ {[%emt 0:00:01]} Kf6 {[%emt 0:00:07]} 30. f4 {[%emt 0:00:19]} Ke6 {[%emt 0:00:12]} 31. Rh6+ {[%emt 0:00:05]} Kd7 {[%emt 0:00:02]} 32. Rhg6 {[%emt 0:00:04]} Rf8 {[%emt 0:00:08]} 33. Rg8 {[%emt 0:00:55]} Rf6 {[%emt 0:00:15]} 34. R5g7+ {[%emt 0:00:10]} Ke6 {[%emt 0:00:07]} 35. Rg6 {[%emt 0:00:04]} Rxg6 {[%emt 0:00:02]} 36. Rxg6+ {[%emt 0:00:05]} Kf5 {[%emt 0:00:01]} 37. Rg5+ {[%emt 0:00:14]} Ke4 {[%emt 0:00:01]} 38. Kd2 {[%emt 0:00:03] Black got outplayed after the opening.  Weighted Error Value: White=0.28 (precise) /Black=1.45} 1-0